[Event "Titled Tuesday Blitz March 14 Late 2023"]
[White "O`Gorman, Tom"]
[Black "Omelja, Artem"]
[WhiteFideId "2508249"]
[BlackFideId "14119846"]
[WhiteElo "2271"]
[BlackElo "2404"]
[Result "1/2-1/2"]
[Round "06"]
[TimeControl "180+2"]
[Date "2023.03.14"]
[WhiteClock "0:01:44"]
[BlackClock "0:01:38"]

1. e4 {[%clk 0:03:00]}  c5 {[%clk 0:02:50]} 2. Nf3 {[%clk 0:03:00]}  Nc6 {[%clk 0:02:47]} 3. d4 {[%clk 0:03:00]}  cxd4 {[%clk 0:02:46]} 4. Nxd4 {[%clk 0:03:01]}  Nf6 {[%clk 0:02:46]} 5. Nc3 {[%clk 0:03:01]}  e5 {[%clk 0:02:46]} 6. Ndb5 {[%clk 0:03:01]}  d6 {[%clk 0:02:46]} 7. Bg5 {[%clk 0:03:00]}  a6 {[%clk 0:02:44]} 8. Na3 {[%clk 0:02:59]}  b5 {[%clk 0:02:24]} 9. Nd5 {[%clk 0:02:58]}  Be7 {[%clk 0:02:24]} 10. Bxf6 {[%clk 0:02:58]}  Bxf6 {[%clk 0:02:21]} 11. c3 {[%clk 0:02:59]}  O-O {[%clk 0:02:17]} 12. Nc2 {[%clk 0:02:58]}  Be6 {[%clk 0:02:16]} 13. Nce3 {[%clk 0:02:55]}  Bg5 {[%clk 0:02:16]} 14. Be2 {[%clk 0:02:49]}  Ne7 {[%clk 0:02:15]} 15. Nxe7+ {[%clk 0:02:49]}  Qxe7 {[%clk 0:02:15]} 16. Nd5 {[%clk 0:02:50]}  Qb7 {[%clk 0:02:11]} 17. O-O {[%clk 0:02:45]}  Bxd5 {[%clk 0:02:11]} 18. Qxd5 {[%clk 0:02:46]}  Qxd5 {[%clk 0:02:11]} 19. exd5 {[%clk 0:02:47]}  f5 {[%clk 0:02:10]} 20. a4 {[%clk 0:02:47]}  bxa4 {[%clk 0:02:06]} 21. Rxa4 {[%clk 0:02:46]}  Rfb8 {[%clk 0:02:07]} 22. b4 {[%clk 0:02:44]}  Bd2 {[%clk 0:02:05]} 23. Rxa6 {[%clk 0:02:22]}  Rxa6 {[%clk 0:02:02]} 24. Bxa6 {[%clk 0:02:23]}  Bxc3 {[%clk 0:02:02]} 25. b5 {[%clk 0:02:22]}  Bd4 {[%clk 0:02:02]} 26. Rc1 {[%clk 0:02:20]}  Bc5 {[%clk 0:02:02]} 27. Kf1 {[%clk 0:02:14]}  Kf7 {[%clk 0:02:01]} 28. Ke2 {[%clk 0:02:14]}  e4 {[%clk 0:02:02]} 29. f3 {[%clk 0:02:14]}  exf3+ {[%clk 0:02:02]} 30. Kxf3 {[%clk 0:02:12]}  Kf6 {[%clk 0:02:02]} 31. Re1 {[%clk 0:02:11]}  g6 {[%clk 0:01:59]} 32. Re6+ {[%clk 0:02:10]}  Kf7 {[%clk 0:01:59]} 33. g4 {[%clk 0:02:09]}  fxg4+ {[%clk 0:01:58]} 34. Kxg4 {[%clk 0:02:10]}  h6 {[%clk 0:01:48]} 35. h4 {[%clk 0:02:06]}  Re8 {[%clk 0:01:47]} 36. Rxe8 {[%clk 0:02:01]}  Kxe8 {[%clk 0:01:48]} 37. Bc8 {[%clk 0:02:01]}  Kf7 {[%clk 0:01:45]} 38. Be6+ {[%clk 0:02:01]}  Kf6 {[%clk 0:01:46]} 39. Kf4 {[%clk 0:01:59]}  Bf2 {[%clk 0:01:44]} 40. Kf3 {[%clk 0:01:56]}  Bb6 {[%clk 0:01:43]} 41. Kg4 {[%clk 0:01:52]}  Bf2 {[%clk 0:01:41]} 42. h5 {[%clk 0:01:51]}  gxh5+ {[%clk 0:01:38]} 43. Kxh5 {[%clk 0:01:52]}  Be3 {[%clk 0:01:38]} 44. Kg4 {[%clk 0:01:52]}  Bb6 {[%clk 0:01:38]} 45. Kf3 {[%clk 0:01:49]}  Bc5 {[%clk 0:01:37]} 46. Kg4 {[%clk 0:01:47]}  Bb6 {[%clk 0:01:37]} 47. Kh5 {[%clk 0:01:47]}  Be3 {[%clk 0:01:37]} 48. Kg4 {[%clk 0:01:44]}  Bb6 {[%clk 0:01:38]} 1/2-1/2


[Site "https://www.chess.com"]

[Event "Titled Tuesday Blitz March 14 Late 2023"]
[White "Jovic, Stanoje"]
[Black "Vlassov, Nikolai"]
[WhiteFideId "905020"]
[BlackFideId "4103360"]
[WhiteElo "2236"]
[BlackElo "2324"]
[Result "0-1"]
[Round "06"]
[TimeControl "180+2"]
[Date "2023.03.14"]
[WhiteClock "0:00:03"]
[BlackClock "0:00:14"]

1. c4 {[%clk 0:03:00]}  e5 {[%clk 0:02:59]} 2. g3 {[%clk 0:03:00]}  h5 {[%clk 0:02:58]} 3. h3 {[%clk 0:02:58]}  c6 {[%clk 0:02:57]} 4. d4 {[%clk 0:02:55]}  exd4 {[%clk 0:02:46]} 5. Qxd4 {[%clk 0:02:53]}  d5 {[%clk 0:02:46]} 6. Bg2 {[%clk 0:02:47]}  Nf6 {[%clk 0:02:45]} 7. Nf3 {[%clk 0:02:43]}  Be7 {[%clk 0:02:28]} 8. cxd5 {[%clk 0:02:42]}  cxd5 {[%clk 0:02:26]} 9. O-O {[%clk 0:02:39]}  Nc6 {[%clk 0:02:26]} 10. Qa4 {[%clk 0:02:38]}  Bd7 {[%clk 0:02:17]} 11. Qb3 {[%clk 0:02:34]}  Na5 {[%clk 0:02:09]} 12. Qd1 {[%clk 0:02:34]}  Rc8 {[%clk 0:02:02]} 13. Nc3 {[%clk 0:02:32]}  Be6 {[%clk 0:02:01]} 14. Nd4 {[%clk 0:02:29]}  Qd7 {[%clk 0:02:00]} 15. Nxe6 {[%clk 0:02:22]}  fxe6 {[%clk 0:02:00]} 16. Bg5 {[%clk 0:02:13]}  Nc4 {[%clk 0:01:54]} 17. b3 {[%clk 0:02:08]}  Nd6 {[%clk 0:01:53]} 18. Rc1 {[%clk 0:02:03]}  O-O {[%clk 0:01:53]} 19. e3 {[%clk 0:01:58]}  Rf7 {[%clk 0:01:39]} 20. Ne2 {[%clk 0:01:53]}  Nde4 {[%clk 0:01:31]} 21. Bxf6 {[%clk 0:01:43]}  Nxf6 {[%clk 0:01:23]} 22. Nf4 {[%clk 0:01:36]}  h4 {[%clk 0:01:20]} 23. gxh4 {[%clk 0:01:28]}  Bd6 {[%clk 0:01:07]} 24. Rxc8+ {[%clk 0:01:19]}  Qxc8 {[%clk 0:01:07]} 25. Ng6 {[%clk 0:01:17]}  Bb8 {[%clk 0:00:59]} 26. h5 {[%clk 0:01:13]}  Qc7 {[%clk 0:00:58]} 27. f4 {[%clk 0:01:13]}  Qb6 {[%clk 0:00:57]} 28. Qd3 {[%clk 0:01:08]}  Nxh5 {[%clk 0:00:53]} 29. Bf3 {[%clk 0:00:57]}  Nxf4 {[%clk 0:00:51]} 30. Nxf4 {[%clk 0:00:48]}  Bxf4 {[%clk 0:00:51]} 31. Kg2 {[%clk 0:00:33]}  Bxe3 {[%clk 0:00:45]} 32. Bg4 {[%clk 0:00:28]}  Rxf1 {[%clk 0:00:43]} 33. Kxf1 {[%clk 0:00:28]}  Kf7 {[%clk 0:00:35]} 34. Bh5+ {[%clk 0:00:26]}  Ke7 {[%clk 0:00:35]} 35. Qg6 {[%clk 0:00:26]}  Qb5+ {[%clk 0:00:28]} 36. Kg2 {[%clk 0:00:22]}  Bd4 {[%clk 0:00:24]} 37. Qf7+ {[%clk 0:00:21]}  Kd6 {[%clk 0:00:25]} 38. Qf8+ {[%clk 0:00:18]}  Kc7 {[%clk 0:00:23]} 39. Bg4 {[%clk 0:00:11]}  Qd7 {[%clk 0:00:20]} 40. Qf4+ {[%clk 0:00:11]}  e5 {[%clk 0:00:19]} 41. Qf8 {[%clk 0:00:09]}  Qc6 {[%clk 0:00:17]} 42. Qxg7+ {[%clk 0:00:08]}  Kb6 {[%clk 0:00:17]} 43. Qh7 {[%clk 0:00:04]}  Qc3 {[%clk 0:00:15]} 44. Qf5 {[%clk 0:00:03]}  Qd2+ {[%clk 0:00:14]} 45. Kg3 {[%clk 0:00:03]}  Qe1+ {[%clk 0:00:14]} 0-1


[Site "https://www.chess.com"]

[Event "Titled Tuesday Blitz March 14 Late 2023"]
[White "Hajiyev, Kanan"]
[Black "Arabidze, Meri"]
[WhiteFideId "13404148"]
[BlackFideId "13604040"]
[WhiteElo "2103"]
[BlackElo "2405"]
[Result "0-1"]
[Round "06"]
[TimeControl "180+2"]
[Date "2023.03.14"]
[WhiteClock "0:00:16"]
[BlackClock "0:00:07"]

1. d4 {[%clk 0:03:00]}  Nf6 {[%clk 0:02:56]} 2. Nf3 {[%clk 0:03:01]}  e6 {[%clk 0:02:56]} 3. c4 {[%clk 0:03:01]}  Bb4+ {[%clk 0:02:55]} 4. Nbd2 {[%clk 0:02:59]}  O-O {[%clk 0:02:54]} 5. a3 {[%clk 0:02:58]}  Be7 {[%clk 0:02:54]} 6. e4 {[%clk 0:02:58]}  d6 {[%clk 0:02:54]} 7. Bd3 {[%clk 0:02:57]}  e5 {[%clk 0:02:52]} 8. O-O {[%clk 0:02:55]}  Nfd7 {[%clk 0:02:51]} 9. b4 {[%clk 0:02:50]}  exd4 {[%clk 0:02:49]} 10. Nxd4 {[%clk 0:02:49]}  Bf6 {[%clk 0:02:49]} 11. Bb2 {[%clk 0:02:49]}  c5 {[%clk 0:02:48]} 12. N2b3 {[%clk 0:02:25]}  cxd4 {[%clk 0:02:47]} 13. Bxd4 {[%clk 0:02:21]}  Nc6 {[%clk 0:02:43]} 14. Bxf6 {[%clk 0:02:17]}  Nxf6 {[%clk 0:02:43]} 15. Qe2 {[%clk 0:02:07]}  Re8 {[%clk 0:02:42]} 16. Rad1 {[%clk 0:02:06]}  Ne5 {[%clk 0:02:37]} 17. Bc2 {[%clk 0:02:00]}  Qc7 {[%clk 0:02:37]} 18. c5 {[%clk 0:01:59]}  dxc5 {[%clk 0:02:34]} 19. Nxc5 {[%clk 0:01:56]}  b6 {[%clk 0:02:34]} 20. Ba4 {[%clk 0:01:55]}  Bg4 {[%clk 0:02:18]} 21. f3 {[%clk 0:01:52]}  bxc5 {[%clk 0:02:13]} 22. Bxe8 {[%clk 0:01:42]}  Rxe8 {[%clk 0:02:13]} 23. fxg4 {[%clk 0:01:41]}  Nexg4 {[%clk 0:02:12]} 24. g3 {[%clk 0:01:24]}  c4 {[%clk 0:02:11]} 25. Rf4 {[%clk 0:01:20]}  Qb6+ {[%clk 0:01:57]} 26. Kh1 {[%clk 0:01:14]}  h5 {[%clk 0:01:51]} 27. h3 {[%clk 0:01:06]}  Ne5 {[%clk 0:01:51]} 28. Rf5 {[%clk 0:01:04]}  Nd3 {[%clk 0:01:42]} 29. e5 {[%clk 0:00:56]}  Qd4 {[%clk 0:01:32]} 30. Kh2 {[%clk 0:00:49]}  Rxe5 {[%clk 0:01:10]} 31. Rxe5 {[%clk 0:00:48]}  Qxe5 {[%clk 0:01:11]} 32. Qxe5 {[%clk 0:00:48]}  Nxe5 {[%clk 0:01:12]} 33. a4 {[%clk 0:00:47]}  c3 {[%clk 0:01:07]} 34. Rd8+ {[%clk 0:00:46]}  Kh7 {[%clk 0:01:06]} 35. Rc8 {[%clk 0:00:47]}  Ne4 {[%clk 0:00:47]} 36. b5 {[%clk 0:00:44]}  Nd3 {[%clk 0:00:46]} 37. Rc4 {[%clk 0:00:37]}  Ndc5 {[%clk 0:00:36]} 38. a5 {[%clk 0:00:37]}  f5 {[%clk 0:00:36]} 39. b6 {[%clk 0:00:37]}  axb6 {[%clk 0:00:36]} 40. axb6 {[%clk 0:00:38]}  g6 {[%clk 0:00:33]} 41. g4 {[%clk 0:00:37]}  Kh6 {[%clk 0:00:30]} 42. Kg2 {[%clk 0:00:36]}  Kg5 {[%clk 0:00:29]} 43. gxh5 {[%clk 0:00:36]}  Kxh5 {[%clk 0:00:26]} 44. Rb4 {[%clk 0:00:32]}  Nb7 {[%clk 0:00:22]} 45. Rc4 {[%clk 0:00:30]}  Kg5 {[%clk 0:00:16]} 46. Rc7 {[%clk 0:00:28]}  Nbc5 {[%clk 0:00:16]} 47. b7 {[%clk 0:00:25]}  Nxb7 {[%clk 0:00:12]} 48. Rxb7 {[%clk 0:00:26]}  Kf4 {[%clk 0:00:13]} 49. h4 {[%clk 0:00:20]}  Ke3 {[%clk 0:00:11]} 50. Rg7 {[%clk 0:00:20]}  c2 {[%clk 0:00:11]} 51. Rc7 {[%clk 0:00:19]}  Kd2 {[%clk 0:00:11]} 52. Kf3 {[%clk 0:00:18]}  c1=Q {[%clk 0:00:10]} 53. Rxc1 {[%clk 0:00:19]}  Kxc1 {[%clk 0:00:11]} 54. Kf4 {[%clk 0:00:20]}  Kd2 {[%clk 0:00:07]} 55. h5 {[%clk 0:00:19]}  gxh5 {[%clk 0:00:06]} 56. Kxf5 {[%clk 0:00:20]}  Ke3 {[%clk 0:00:06]} 57. Kg6 {[%clk 0:00:16]}  h4 {[%clk 0:00:07]} 0-1


[Site "https://www.chess.com"]

[Event "Titled Tuesday Blitz March 14 Late 2023"]
[White "Liu, Casper"]
[Black "Fus, Jakub"]
[WhiteFideId "1454153"]
[BlackFideId "1193023"]
[WhiteElo "2221"]
[BlackElo "2335"]
[Result "1/2-1/2"]
[Round "06"]
[TimeControl "180+2"]
[Date "2023.03.14"]
[WhiteClock "0:00:29"]
[BlackClock "0:00:06"]

1. d4 {[%clk 0:03:00]}  e6 {[%clk 0:02:47]} 2. c4 {[%clk 0:03:00]}  Nf6 {[%clk 0:02:47]} 3. Nc3 {[%clk 0:03:00]}  d5 {[%clk 0:02:47]} 4. cxd5 {[%clk 0:03:00]}  Nxd5 {[%clk 0:02:46]} 5. e4 {[%clk 0:03:00]}  Nxc3 {[%clk 0:02:46]} 6. bxc3 {[%clk 0:03:00]}  c5 {[%clk 0:02:47]} 7. Nf3 {[%clk 0:03:00]}  cxd4 {[%clk 0:02:48]} 8. cxd4 {[%clk 0:03:01]}  Bb4+ {[%clk 0:02:47]} 9. Bd2 {[%clk 0:03:02]}  Bxd2+ {[%clk 0:02:48]} 10. Qxd2 {[%clk 0:03:03]}  O-O {[%clk 0:02:48]} 11. Rd1 {[%clk 0:03:03]}  b6 {[%clk 0:02:45]} 12. Be2 {[%clk 0:03:03]}  Bb7 {[%clk 0:02:45]} 13. Qe3 {[%clk 0:03:04]}  Nd7 {[%clk 0:02:45]} 14. O-O {[%clk 0:03:04]}  Nf6 {[%clk 0:02:44]} 15. Bd3 {[%clk 0:03:04]}  Rc8 {[%clk 0:02:44]} 16. Bb1 {[%clk 0:03:04]}  Qe7 {[%clk 0:02:36]} 17. e5 {[%clk 0:03:03]}  Nd5 {[%clk 0:02:36]} 18. Qd3 {[%clk 0:03:03]}  g6 {[%clk 0:02:35]} 19. Qd2 {[%clk 0:03:01]}  Kg7 {[%clk 0:02:34]} 20. Ng5 {[%clk 0:03:00]}  Nc3 {[%clk 0:02:25]} 21. Rc1 {[%clk 0:02:55]}  Nxb1 {[%clk 0:02:23]} 22. Rxb1 {[%clk 0:02:55]}  h6 {[%clk 0:02:23]} 23. Nh3 {[%clk 0:02:54]}  Rfd8 {[%clk 0:02:23]} 24. Rbc1 {[%clk 0:02:53]}  Qa3 {[%clk 0:02:12]} 25. Nf4 {[%clk 0:02:50]}  Qa4 {[%clk 0:02:06]} 26. Rxc8 {[%clk 0:02:42]}  Rxc8 {[%clk 0:02:05]} 27. d5 {[%clk 0:02:43]}  Rc2 {[%clk 0:01:50]} 28. Qe3 {[%clk 0:02:38]}  exd5 {[%clk 0:01:46]} 29. e6 {[%clk 0:02:38]}  Qe4 {[%clk 0:01:36]} 30. exf7 {[%clk 0:02:14]}  Kxf7 {[%clk 0:01:27]} 31. Qb3 {[%clk 0:02:07]}  Ba6 {[%clk 0:00:56]} 32. Rd1 {[%clk 0:01:53]}  Bc4 {[%clk 0:00:54]} 33. Qa4 {[%clk 0:01:36]}  Rb2 {[%clk 0:00:32]} 34. Qd7+ {[%clk 0:01:28]}  Qe7 {[%clk 0:00:32]} 35. Qc6 {[%clk 0:01:27]}  Qf6 {[%clk 0:00:18]} 36. Qc7+ {[%clk 0:01:23]}  Qe7 {[%clk 0:00:18]} 37. Qc8 {[%clk 0:01:13]}  g5 {[%clk 0:00:11]} 38. Qf5+ {[%clk 0:00:34]}  Qf6 {[%clk 0:00:10]} 39. Qd7+ {[%clk 0:00:32]}  Qe7 {[%clk 0:00:10]} 40. Qf5+ {[%clk 0:00:32]}  Qf6 {[%clk 0:00:11]} 41. Qd7+ {[%clk 0:00:32]}  Kg8 {[%clk 0:00:07]} 42. Qe8+ {[%clk 0:00:30]}  Kh7 {[%clk 0:00:05]} 43. Qd7+ {[%clk 0:00:28]}  Kg8 {[%clk 0:00:05]} 44. Qe8+ {[%clk 0:00:28]}  Kh7 {[%clk 0:00:06]} 45. Qd7+ {[%clk 0:00:29]}  Kg8 {[%clk 0:00:06]} 1/2-1/2


[Site "https://www.chess.com"]

[Event "Titled Tuesday Blitz March 14 Late 2023"]
[White "Kielinkei"]
[Black "Saveliev, Alexei"]
[BlackFideId "24128546"]
[WhiteElo "2427"]
[BlackElo "2271"]
[Result "0-1"]
[Round "06"]
[TimeControl "180+2"]
[Date "2023.03.14"]
[WhiteClock "0:00:16"]
[BlackClock "0:00:05"]

1. Nf3 {[%clk 0:03:00]}  g6 {[%clk 0:03:00]} 2. e4 {[%clk 0:02:59]}  Bg7 {[%clk 0:02:58]} 3. d4 {[%clk 0:02:58]}  d6 {[%clk 0:02:59]} 4. Nc3 {[%clk 0:02:58]}  Nc6 {[%clk 0:02:59]} 5. h3 {[%clk 0:02:56]}  Nf6 {[%clk 0:02:59]} 6. Be3 {[%clk 0:02:55]}  O-O {[%clk 0:02:59]} 7. Be2 {[%clk 0:02:53]}  Nd7 {[%clk 0:02:57]} 8. O-O {[%clk 0:02:51]}  e5 {[%clk 0:02:57]} 9. dxe5 {[%clk 0:02:47]}  Ndxe5 {[%clk 0:02:58]} 10. Nxe5 {[%clk 0:02:46]}  dxe5 {[%clk 0:02:49]} 11. Bc4 {[%clk 0:02:24]}  Nd4 {[%clk 0:02:47]} 12. Ne2 {[%clk 0:02:12]}  Be6 {[%clk 0:02:41]} 13. Bxe6 {[%clk 0:02:09]}  Nxe6 {[%clk 0:02:42]} 14. Qxd8 {[%clk 0:01:58]}  Rfxd8 {[%clk 0:02:42]} 15. Rfd1 {[%clk 0:01:57]}  b6 {[%clk 0:02:40]} 16. c3 {[%clk 0:01:52]}  Bf8 {[%clk 0:02:39]} 17. Kf1 {[%clk 0:01:26]}  Bc5 {[%clk 0:02:35]} 18. Bd2 {[%clk 0:01:08]}  a5 {[%clk 0:02:30]} 19. Ke1 {[%clk 0:01:03]}  Rd3 {[%clk 0:02:23]} 20. Nc1 {[%clk 0:00:59]}  Rd7 {[%clk 0:02:19]} 21. Nb3 {[%clk 0:00:56]}  Rad8 {[%clk 0:02:18]} 22. f3 {[%clk 0:00:46]}  a4 {[%clk 0:02:14]} 23. Nxc5 {[%clk 0:00:34]}  Nxc5 {[%clk 0:02:15]} 24. Ke2 {[%clk 0:00:32]}  f6 {[%clk 0:02:03]} 25. Be3 {[%clk 0:00:26]}  Nd3 {[%clk 0:01:49]} 26. Rd2 {[%clk 0:00:26]}  c5 {[%clk 0:01:49]} 27. b3 {[%clk 0:00:21]}  b5 {[%clk 0:01:25]} 28. c4 {[%clk 0:00:21]}  bxc4 {[%clk 0:00:48]} 29. bxc4 {[%clk 0:00:22]}  Nb4 {[%clk 0:00:23]} 30. Rxd7 {[%clk 0:00:20]}  Rxd7 {[%clk 0:00:24]} 31. Bxc5 {[%clk 0:00:21]}  Nc6 {[%clk 0:00:22]} 32. Be3 {[%clk 0:00:19]}  Rb7 {[%clk 0:00:20]} 33. Rd1 {[%clk 0:00:17]}  Kf7 {[%clk 0:00:19]} 34. c5 {[%clk 0:00:13]}  a3 {[%clk 0:00:18]} 35. Rd6 {[%clk 0:00:09]}  Rb2+ {[%clk 0:00:18]} 36. Rd2 {[%clk 0:00:09]}  Nb4 {[%clk 0:00:15]} 37. Kd1 {[%clk 0:00:04]}  Rb1+ {[%clk 0:00:11]} 38. Ke2 {[%clk 0:00:04]}  Ke6 {[%clk 0:00:08]} 39. Rd6+ {[%clk 0:00:04]}  Ke7 {[%clk 0:00:08]} 40. Rb6 {[%clk 0:00:04]}  Rb2+ {[%clk 0:00:09]} 41. Kd1 {[%clk 0:00:02]}  Nxa2 {[%clk 0:00:04]} 42. Rxb2 {[%clk 0:00:02]}  axb2 {[%clk 0:00:05]} 43. Kc2 {[%clk 0:00:02]}  Nc3 {[%clk 0:00:05]} 44. Kxb2 {[%clk 0:00:03]}  Nd1+ {[%clk 0:00:06]} 45. Kc2 {[%clk 0:00:02]}  Nxe3+ {[%clk 0:00:06]} 46. Kd3 {[%clk 0:00:02]}  Nxg2 {[%clk 0:00:07]} 47. Kc4 {[%clk 0:00:03]}  Nf4 {[%clk 0:00:05]} 48. Kb5 {[%clk 0:00:01]}  Kd7 {[%clk 0:00:05]} 49. Kb6 {[%clk 0:00:02]}  Ne6 {[%clk 0:00:03]} 50. c6+ {[%clk 0:00:02]}  Kd6 {[%clk 0:00:03]} 51. Kb7 {[%clk 0:00:02]}  h5 {[%clk 0:00:02]} 52. Kc8 {[%clk 0:00:02]}  Kxc6 {[%clk 0:00:02]} 53. Kb8 {[%clk 0:00:02]}  Kd7 {[%clk 0:00:02]} 54. Kb7 {[%clk 0:00:02]}  h4 {[%clk 0:00:02]} 55. Kb8 {[%clk 0:00:03]}  Nf4 {[%clk 0:00:02]} 56. Kb7 {[%clk 0:00:04]}  Nxh3 {[%clk 0:00:03]} 57. Kb6 {[%clk 0:00:05]}  Ng5 {[%clk 0:00:03]} 58. Kc5 {[%clk 0:00:06]}  Nxf3 {[%clk 0:00:04]} 59. Kd5 {[%clk 0:00:07]}  Nd4 {[%clk 0:00:04]} 60. Kc4 {[%clk 0:00:08]}  Ke6 {[%clk 0:00:04]} 61. Kd3 {[%clk 0:00:08]}  g5 {[%clk 0:00:05]} 62. Ke3 {[%clk 0:00:09]}  f5 {[%clk 0:00:06]} 63. Kd3 {[%clk 0:00:09]}  f4 {[%clk 0:00:06]} 64. Kc4 {[%clk 0:00:09]}  h3 {[%clk 0:00:06]} 65. Kd3 {[%clk 0:00:10]}  h2 {[%clk 0:00:07]} 66. Kc4 {[%clk 0:00:11]}  h1=Q {[%clk 0:00:07]} 67. Kd3 {[%clk 0:00:12]}  Qd1+ {[%clk 0:00:06]} 68. Kc4 {[%clk 0:00:13]}  Qc2+ {[%clk 0:00:06]} 69. Kb4 {[%clk 0:00:13]}  Qxe4 {[%clk 0:00:05]} 70. Kc5 {[%clk 0:00:13]}  Qc2+ {[%clk 0:00:05]} 71. Kb4 {[%clk 0:00:14]}  Kd5 {[%clk 0:00:04]} 72. Ka3 {[%clk 0:00:15]}  Qb1 {[%clk 0:00:04]} 73. Ka4 {[%clk 0:00:15]}  Qb5+ {[%clk 0:00:05]} 74. Ka3 {[%clk 0:00:16]}  Qb3# {[%clk 0:00:05]} 0-1


[Site "https://www.chess.com"]

[Event "Titled Tuesday Blitz March 14 Late 2023"]
[White "Melian, Juan Sebastian"]
[Black "Meunier-Pion, Jean"]
[WhiteFideId "3706575"]
[BlackFideId "20685327"]
[WhiteElo "2031"]
[BlackElo "2124"]
[Result "1/2-1/2"]
[Round "06"]
[TimeControl "180+2"]
[Date "2023.03.14"]
[WhiteClock "0:00:09"]
[BlackClock "0:00:03"]

1. d3 {[%clk 0:03:00]}  e5 {[%clk 0:02:59]} 2. c4 {[%clk 0:02:59]}  Nf6 {[%clk 0:02:58]} 3. a3 {[%clk 0:02:58]}  d5 {[%clk 0:02:58]} 4. cxd5 {[%clk 0:02:59]}  Nxd5 {[%clk 0:02:58]} 5. Nf3 {[%clk 0:03:00]}  Nc6 {[%clk 0:02:56]} 6. e4 {[%clk 0:02:54]}  Nde7 {[%clk 0:02:52]} 7. b4 {[%clk 0:02:52]}  Bg4 {[%clk 0:02:52]} 8. Bb2 {[%clk 0:02:48]}  Ng6 {[%clk 0:02:48]} 9. h3 {[%clk 0:02:41]}  Bxf3 {[%clk 0:02:41]} 10. Qxf3 {[%clk 0:02:42]}  Nd4 {[%clk 0:02:41]} 11. Qd1 {[%clk 0:02:41]}  Nf4 {[%clk 0:02:34]} 12. g3 {[%clk 0:02:41]}  Nfe6 {[%clk 0:02:35]} 13. Bg2 {[%clk 0:02:38]}  a5 {[%clk 0:02:32]} 14. bxa5 {[%clk 0:02:33]}  Rxa5 {[%clk 0:02:17]} 15. O-O {[%clk 0:02:33]}  Bc5 {[%clk 0:02:15]} 16. Kh2 {[%clk 0:02:32]}  h5 {[%clk 0:02:12]} 17. Nd2 {[%clk 0:02:26]}  h4 {[%clk 0:02:09]} 18. Nc4 {[%clk 0:02:25]}  hxg3+ {[%clk 0:02:08]} 19. fxg3 {[%clk 0:02:18]}  Ra6 {[%clk 0:02:01]} 20. Nxe5 {[%clk 0:02:06]}  Ng5 {[%clk 0:01:49]} 21. Qg4 {[%clk 0:01:50]}  Nxh3 {[%clk 0:01:36]} 22. Bxh3 {[%clk 0:01:51]}  Rah6 {[%clk 0:01:36]} 23. Kg2 {[%clk 0:01:39]}  Rxh3 {[%clk 0:01:36]} 24. Rh1 {[%clk 0:01:39]}  Rxh1 {[%clk 0:01:12]} 25. Rxh1 {[%clk 0:01:40]}  Rxh1 {[%clk 0:01:13]} 26. Kxh1 {[%clk 0:01:41]}  Qd6 {[%clk 0:01:10]} 27. Qxg7 {[%clk 0:01:37]}  Ne2 {[%clk 0:00:39]} 28. Qxf7+ {[%clk 0:01:24]}  Kd8 {[%clk 0:00:39]} 29. Nc4 {[%clk 0:00:23]}  Qh6+ {[%clk 0:00:27]} 30. Kg2 {[%clk 0:00:22]}  Be7 {[%clk 0:00:06]} 31. Qf2 {[%clk 0:00:22]}  Qh5 {[%clk 0:00:05]} 32. Ne3 {[%clk 0:00:10]}  Bc5 {[%clk 0:00:02]} 33. Qf3 {[%clk 0:00:05]}  Qxf3+ {[%clk 0:00:02]} 34. Kxf3 {[%clk 0:00:06]}  Nd4+ {[%clk 0:00:02]} 35. Bxd4 {[%clk 0:00:06]}  Bxd4 {[%clk 0:00:03]} 36. Nf5 {[%clk 0:00:06]}  Bb2 {[%clk 0:00:04]} 37. a4 {[%clk 0:00:06]}  Kd7 {[%clk 0:00:04]} 38. Kf4 {[%clk 0:00:04]}  c6 {[%clk 0:00:05]} 39. e5 {[%clk 0:00:05]}  Bc3 {[%clk 0:00:05]} 40. Ke4 {[%clk 0:00:05]}  b5 {[%clk 0:00:06]} 41. axb5 {[%clk 0:00:05]}  cxb5 {[%clk 0:00:07]} 42. Nd4 {[%clk 0:00:06]}  b4 {[%clk 0:00:06]} 43. Nb3 {[%clk 0:00:06]}  Ke7 {[%clk 0:00:06]} 44. d4 {[%clk 0:00:07]}  Be1 {[%clk 0:00:06]} 45. d5 {[%clk 0:00:08]}  Bxg3 {[%clk 0:00:05]} 46. Nd4 {[%clk 0:00:08]}  Bf2 {[%clk 0:00:03]} 47. Nb3 {[%clk 0:00:07]}  Kd7 {[%clk 0:00:03]} 48. d6 {[%clk 0:00:06]}  Ke6 {[%clk 0:00:03]} 49. Nd2 {[%clk 0:00:05]}  Bg3 {[%clk 0:00:02]} 50. Nc4 {[%clk 0:00:05]}  Bxe5 {[%clk 0:00:02]} 51. Nxe5 {[%clk 0:00:05]}  Kxd6 {[%clk 0:00:02]} 52. Kd4 {[%clk 0:00:06]}  b3 {[%clk 0:00:02]} 53. Nc4+ {[%clk 0:00:06]}  Kc6 {[%clk 0:00:02]} 54. Nb2 {[%clk 0:00:07]}  Kb5 {[%clk 0:00:03]} 55. Kc3 {[%clk 0:00:08]}  Kc5 {[%clk 0:00:03]} 56. Kxb3 {[%clk 0:00:09]} 1/2-1/2


[Site "https://www.chess.com"]